[Event "French Top 16-A 2024"]
[Site "Chartres"]
[Date "2024.06.02"]
[Round "4.15"]
[White "Delay, Guillaume"]
[Black "Macon, Arthur"]
[Result "0-1"]
[ECO "B14"]
[WhiteElo "2043"]
[BlackElo "2352"]
[Annotator "RC"]
[PlyCount "140"]
[EventDate "2024.06.01"]
[EventType "team-tourn"]
[EventCountry "FRA"]
[SourceTitle "playchess.com"]
[Source "ChessBase"]
[SourceQuality "1"]
[TimeControl "40/5400+30:1800+30"]

1. e4 {[%emt 0:00:03]} c6 {[%emt 0:00:10]} 2. d4 {[%emt 0:00:14]} d5 {[%emt 0:00:08]} 3. exd5 {[%emt 0:00:11]} cxd5 {[%emt 0:00:11]} 4. c4 {[%emt 0:00:12]} Nf6 {[%emt 0:00:11]} 5. Nc3 {[%emt 0:00:09]} e6 {[%emt 0:00:08]} 6. Nf3 {[%emt 0:00:13]} Bb4 {[%emt 0:01:24]} 7. cxd5 {[%emt 0:02:18]} Nxd5 {[%emt 0:01:14]} 8. Bd2 {[%emt 0:00:38]} O-O {[%emt 0:02:50]} 9. Bd3 {[%emt 0:02:15]} Nc6 {[%emt 0:03:09]} 10. O-O {[%emt 0:01:10]} Be7 {[%emt 0:04:10]} 11. a3 {[%emt 0:16:10]} Bf6 {[%emt 0:05:37]} 12. Qc2 {[%emt 0:02:15]} h6 {[%emt 0:04:28]} 13. Nxd5 {[%emt 0:06:51]} exd5 {[%emt 0:02:43]} 14. Bc3 {[%emt 0:02:52]} Qb6 {[%emt 0:09:19]} 15. Qa4 {[%emt 0:08:06]} Bd7 {[%emt 0:03:08]} 16. Bb5 {[%emt 0:02:19]} Rfe8 {[%emt 0:04:23]} 17. Rfe1 {[%emt 0:01:17]} Re4 {[%emt 0:01:09]} 18. Bxc6 {[%emt 0:14:48]} Bxc6 {[%emt 0:01:57]} 19. Qc2 {[%emt 0:00:14]} Rae8 {[%emt 0:04:08]} 20. Ne5 {[%emt 0:00:59]} Bxe5 {[%emt 0:01:19]} 21. dxe5 {[%emt 0:00:14]} Rg4 {[%emt 0:00:32]} 22. Kh1 {[%emt 0:09:20]} d4 {[%emt 0:03:32]} 23. f3 {[%emt 0:00:33]} Rg5 {[%emt 0:00:27]} 24. Bd2 {[%emt 0:03:08]} Rgxe5 {[%emt 0:01:12]} 25. Rxe5 {[%emt 0:00:31]} Rxe5 {[%emt 0:00:02]} 26. Bf4 {[%emt 0:03:24]} Re8 {[%emt 0:06:26]} 27. Qf2 {[%emt 0:02:30]} d3 {[%emt 0:03:26]} 28. Qxb6 {[%emt 0:04:03]} axb6 {[%emt 0:00:09]} 29. h4 {[%emt 0:01:28]} Ba4 {[%emt 0:03:04]} 30. b3 {[%emt 0:01:03]} Bxb3 {[%emt 0:01:51]} 31. Rb1 {[%emt 0:00:09]} Bd5 {[%emt 0:01:26]} 32. Kh2 {[%emt 0:06:06]} Re2 {[%emt 0:04:17]} 33. Kg3 {[%emt 0:00:05]} f6 {[%emt 0:09:50]} 34. Rd1 {[%emt 0:04:18]} Bc4 {[%emt 0:02:25]} 35. Bd6 {[%emt 0:02:46]} h5 {[%emt 0:03:10]} 36. Bf4 {[%emt 0:01:54]} b5 {[%emt 0:02:29]} 37. Rd2 {[%emt 0:00:41]} Re6 {[%emt 0:00:22]} 38. Rf2 {[%emt 0:02:12]} Kf7 {[%emt 0:02:56]} 39. Bd2 {[%emt 0:00:26]} Bb3 {[%emt 0:04:46]} 40. Bb4 {[%emt 0:01:10]} Bc2 {[%emt 0:00:42]} 41. Kf4 {[%emt 0:03:48]} Re5 {[%emt 0:04:44]} 42. g4 {[%emt 0:08:13]} hxg4 {[%emt 0:04:37]} 43. fxg4 {[%emt 0:00:13]} Re4+ {[%emt 0:01:05]} 44. Kg3 {[%emt 0:03:04]} Ke6 {[%emt 0:03:02]} 45. g5 {[%emt 0:06:17]} f5 {[%emt 0:02:44]} 46. Bd2 {[%emt 0:02:01]} g6 {[%emt 0:04:59]} 47. Rf4 {[%emt 0:00:39]} Re5 {[%emt 0:01:38]} 48. Rd4 {[%emt 0:01:23]} Rd5 {[%emt 0:05:18]} 49. Rxd5 {[%emt 0:01:33]} Kxd5 {[%emt 0:00:01]} 50. Kf4 {[%emt 0:00:17]} Bd1 {[%emt 0:00:09]} 51. Ke3 {[%emt 0:01:15]} Kc4 {[%emt 0:00:02]} 52. Bb4 {[%emt 0:00:45]} Be2 {[%emt 0:00:02]} 53. Be1 {[%emt 0:05:31]} Kb3 {[%emt 0:01:10]} 54. h5 {[%emt 0:00:03]} Bxh5 {[%emt 0:00:44]} 55. Kxd3 {[%emt 0:00:06]} Kxa3 {[%emt 0:00:02]} 56. Bg3 {[%emt 0:01:22]} b4 {[%emt 0:05:46]} 57. Bd6 {[%emt 0:00:07]} Ka4 {[%emt 0:00:28]} 58. Kc2 {[%emt 0:00:15]} Be2 {[%emt 0:01:44]} 59. Kd2 {[%emt 0:00:27]} Bf1 {[%emt 0:00:50]} 60. Kc2 {[%emt 0:00:05]} Kb5 {[%emt 0:00:36]} 61. Kb3 {[%emt 0:00:28]} Bc4+ {[%emt 0:00:01]} 62. Kc2 {[%emt 0:00:12]} Be2 {[%emt 0:00:19]} 63. Kb3 {[%emt 0:00:03]} Bd1+ {[%emt 0:00:02]} 64. Kb2 {[%emt 0:00:13]} Kc4 {[%emt 0:00:01]} 65. Kc1 {[%emt 0:00:23]} Ba4 {[%emt 0:02:22]} 66. Kd2 {[%emt 0:00:56]} b3 {[%emt 0:00:46]} 67. Be5 {[%emt 0:00:29]} Kd5 {[%emt 0:00:01]} 68. Bb2 {[%emt 0:00:12]} Ke4 {[%emt 0:00:33]} 69. Kc3 {[%emt 0:02:25]} f4 {[%emt 0:00:34]} 70. Kb4 {[%emt 0:01:19]} f3 {[%emt 0:00:54]} 0-1

[Event "French Top 16-A 2024"]
[Site "Chartres"]
[Date "2024.06.02"]
[Round "4.16"]
[White "Zienkiewicz, Jan"]
[Black "Hejazipour, Mitra"]
[Result "1/2-1/2"]
[ECO "B90"]
[WhiteElo "2164"]
[BlackElo "2376"]
[Annotator "RC"]
[PlyCount "92"]
[EventDate "2024.06.01"]
[EventType "team-tourn"]
[EventCountry "FRA"]
[SourceTitle "playchess.com"]
[Source "ChessBase"]
[SourceQuality "1"]
[TimeControl "40/5400+30:1800+30"]

1. e4 {[%emt 0:00:03]} c5 {[%emt 0:00:14]} 2. Nf3 {[%emt 0:00:12]} d6 {[%emt 0:00:12]} 3. d4 {[%emt 0:00:06]} cxd4 {[%emt 0:00:07]} 4. Nxd4 {[%emt 0:00:07]} Nf6 {[%emt 0:00:16]} 5. Nc3 {[%emt 0:00:07]} a6 {[%emt 0:00:03]} 6. h3 {[%emt 0:00:14]} e5 {[%emt 0:00:25]} 7. Nb3 {[%emt 0:01:11]} Be7 {[%emt 0:00:35]} 8. g4 {[%emt 0:00:37]} h6 {[%emt 0:01:51]} 9. Be3 {[%emt 0:00:49]} Nbd7 {[%emt 0:01:35]} 10. a4 {[%emt 0:03:36]} Nf8 {[%emt 0:07:06]} 11. Qf3 {[%emt 0:31:52]} Qc7 {[%emt 0:02:12]} 12. a5 {[%emt 0:12:59]} Be6 {[%emt 0:04:50]} 13. Bd3 {[%emt 0:02:04]} Qc6 {[%emt 0:05:13]} 14. O-O {[%emt 0:05:47]} Ng6 {[%emt 0:07:09]} 15. Qg2 {[%emt 0:09:41]} Nd7 {[%emt 0:31:48]} 16. Nd5 {[%emt 0:03:33]} Bg5 {[%emt 0:00:04]} 17. c4 {[%emt 0:03:12]} Nf6 {[%emt 0:01:05]} 18. Rac1 {[%emt 0:02:33]} Rd8 {[%emt 0:06:00]} 19. Nd2 {[%emt 0:02:48]} Bxd5 {[%emt 0:02:07]} 20. exd5 {[%emt 0:01:32]} Qa4 {[%emt 0:00:30]} 21. Bxg5 {[%emt 0:03:28]} hxg5 {[%emt 0:00:18]} 22. Bxg6 {[%emt 0:00:02]} fxg6 {[%emt 0:00:08]} 23. Nf3 {[%emt 0:05:51]} Nh7 {[%emt 0:01:19]} 24. c5 {[%emt 0:00:52]} O-O {[%emt 0:01:07]} 25. Rfd1 {[%emt 0:03:17]} Qf4 {[%emt 0:01:37]} 26. Rc3 {[%emt 0:01:43]} dxc5 {[%emt 0:00:58]} 27. Qg3 {[%emt 0:01:47]} e4 {[%emt 0:19:15]} 28. Qxf4 {[%emt 0:01:54]} gxf4 {[%emt 0:00:16]} 29. Ne5 {[%emt 0:00:01]} Rd6 {[%emt 0:00:57]} 30. Rxc5 {[%emt 0:00:10]} Re8 {[%emt 0:02:23]} 31. Nc4 {[%emt 0:00:15]} Rdd8 {[%emt 0:00:26]} 32. d6 {[%emt 0:01:06]} Nf6 {[%emt 0:00:35]} 33. g5 {[%emt 0:01:09]} Nd7 {[%emt 0:00:21]} 34. Rc7 {[%emt 0:00:22]} e3 {[%emt 0:00:23]} 35. fxe3 {[%emt 0:01:02]} fxe3 {[%emt 0:00:01]} 36. Re1 {[%emt 0:00:22]} e2 {[%emt 0:00:21]} 37. Kf2 {[%emt 0:00:39]} Ne5 {[%emt 0:01:29]} 38. Rxe2 {[%emt 0:01:03]} Rf8+ {[%emt 0:00:47]} 39. Kg3 {[%emt 0:01:00]} Nxc4 {[%emt 0:00:29]} 40. Rxc4 {[%emt 0:00:51]} Rxd6 {[%emt 0:00:42]} 41. Re7 {[%emt 0:13:52]} Rd3+ {[%emt 0:00:56]} 42. Kg4 {[%emt 0:02:22]} Rb3 {[%emt 0:02:05]} 43. Rcc7 {[%emt 0:04:35]} Rb4+ {[%emt 0:01:45]} 44. Kg3 {[%emt 0:00:06]} Rb3+ {[%emt 0:00:18]} 45. Kg4 {[%emt 0:00:40]} Rb4+ {[%emt 0:00:14]} 46. Kg3 {[%emt 0:00:06]} Rb3+ {[%emt 0:00:02]} 1/2-1/2

[Event "French Top 16-A 2024"]
[Site "Chartres"]
[Date "2024.06.02"]
[Round "4.16"]
[White "Broly, Mathilde"]
[Black "Hirth, Julien"]
[Result "0-1"]
[ECO "A24"]
[WhiteElo "2097"]
[BlackElo "2063"]
[Annotator "NA RC"]
[PlyCount "72"]
[EventDate "2024.06.01"]
[EventType "team-tourn"]
[EventCountry "FRA"]
[SourceTitle "playchess.com"]
[Source "ChessBase"]
[SourceQuality "1"]
[TimeControl "40/5400+30:1800+30"]

1. Nf3 {[%emt 0:00:05]} Nf6 {[%emt 0:00:24]} 2. g3 {[%emt 0:00:56]} g6 {[%emt 0:01:09]} 3. Bg2 {[%emt 0:01:02]} Bg7 {[%emt 0:00:17]} 4. O-O {[%emt 0:00:25]} O-O {[%emt 0:01:42]} 5. c4 {[%emt 0:05:28]} d6 {[%emt 0:00:59]} 6. Nc3 {[%emt 0:00:40]} e5 {[%emt 0:01:17]} 7. d3 {[%emt 0:03:52]} h6 {[%emt 0:02:24]} 8. Rb1 {[%emt 0:01:12]} a5 {[%emt 0:00:16]} 9. a3 {[%emt 0:00:46]} Re8 {[%emt 0:00:36]} 10. e4 {[%emt 0:09:52]} Bg4 {[%emt 0:07:20]} 11. h3 {[%emt 0:03:09]} Bxf3 {[%emt 0:00:59]} 12. Bxf3 {[%emt 0:01:05]} Nc6 {[%emt 0:00:28]} 13. b4 {[%emt 0:01:18]} axb4 {[%emt 0:00:43]} 14. axb4 {[%emt 0:00:09]} Nh7 {[%emt 0:12:28]} 15. Bg2 {[%emt 0:09:04]} Ng5 {[%emt 0:04:49]} 16. Nd5 {[%emt 0:07:58]} Nd4 {[%emt 0:20:20]} 17. Bb2 {[%emt 0:13:13]} Nge6 {[%emt 0:21:21]} 18. Qg4 {[%emt 0:12:28]} c6 {[%emt 0:00:25]} 19. Nc3 {[%emt 0:02:16]} h5 {[%emt 0:00:45]} 20. Qd1 {[%emt 0:00:13]} Bh6 {[%emt 0:02:51]} 21. Bc1 {[%emt 0:01:14]} Bxc1 {[%emt 0:00:17]} 22. Rxc1 {[%emt 0:00:34]} Qb6 {[%emt 0:02:26]} 23. b5 {[%emt 0:02:08]} Ra3 {[%emt 0:04:42]} 24. Re1 {[%emt 0:07:53]} Rea8 {[%emt 0:02:43]} 25. bxc6 {[%emt 0:03:14]} bxc6 {[%emt 0:00:05]} 26. Rb1 {[%emt 0:01:06]} Qa5 {[%emt 0:01:18]} 27. Ne2 {[%emt 0:00:22]} Ra2 {[%emt 0:01:07]} 28. Nxd4 {[%emt 0:01:48]} Nxd4 {[%emt 0:00:03]} 29. Rb7 {[%emt 0:00:25]} Rd2 {[%emt 0:03:23]} 30. Qb1 {[%emt 0:00:28]} Qa2 {[%emt 0:01:07]} 31. Rb8+ {[%emt 0:01:23]} Rxb8 {[%emt 0:04:31]} 32. Qxb8+ {[%emt 0:00:16]} Kg7 {[%emt 0:00:40]} 33. Rf1 {[%emt 0:01:49]} Qa3 {[%emt 0:00:05]} 34. Kh2 {[%emt 0:06:18]} Qxd3 {[%emt 0:00:47]} 35. c5 {[%emt 0:00:24]} Nf3+ {[%emt 0:00:32]} 36. Bxf3 {[%emt 0:00:17]} Qxf1 {[%emt 0:00:09]} 0-1

[Event "French Top 16-A 2024"]
[Site "Chartres"]
[Date "2024.06.03"]
[Round "5.1"]
[White "Amin, Bassem"]
[Black "Erigaisi Arjun"]
[Result "1/2-1/2"]
[ECO "A37"]
[WhiteElo "2683"]
[BlackElo "2762"]
[Annotator "TA"]
[PlyCount "22"]
[EventDate "2024.06.01"]
[EventType "team-tourn"]
[EventCountry "FRA"]
[SourceTitle "playchess.com"]
[Source "ChessBase"]
[SourceQuality "1"]
[TimeControl "40/5400+30:1800+30"]

{[%evp 11,22,8,11,2,-4,4,50,35,76,65,75,52,66]} 1. Nf3 {[%emt 0:00:34]} c5 {[%emt 0:03:21]} 2. g3 {[%emt 0:00:18]} g6 {[%emt 0:00:08]} 3. Bg2 {[%emt 0:00:38]} Bg7 {[%emt 0:00:07]} 4. O-O {[%emt 0:01:54]} Nc6 {[%emt 0:00:06]} 5. c4 {[%emt 0:00:16]} d6 {[%emt 0:00:16]} 6. Nc3 {[%emt 0:00:22]} Bf5 {[%emt 0:00:09]} 7. h3 {[%emt 0:05:46]} Qd7 {[%emt 0:05:15]} 8. Kh2 {[%emt 0:01:31]} h5 {[%emt 0:11:18]} (8... h6 $11) 9. d3 $14 {[%emt 0:03:04]} Nd4 {[%emt 0:01:27]} 10. Nh4 {[%emt 0:05:57]} Be6 {[%emt 0:01:58]} 11. e3 {[%emt 0:02:09]} Nc6 {[%emt 0:20:22] White took control after the opening.   Weighted Error Value: White=0.06 (flawless) /Black=0.16 (very precise) .  Mistake:       	---       	Black=1      Inaccurate:     	---       	Black=1      OK:         	White=3     	Black=2} 1/2-1/2

[Event "French Top 16-A 2024"]
[Site "Chartres"]
[Date "2024.06.03"]
[Round "5.1"]
[White "Albornoz Cabrera, Carlos Daniel"]
[Black "Martirosyan, Haik M."]
[Result "1/2-1/2"]
[ECO "C67"]
[WhiteElo "2612"]
[BlackElo "2679"]
[Annotator "TA"]
[PlyCount "72"]
[EventDate "2024.06.01"]
[EventType "team-tourn"]
[EventCountry "FRA"]
[SourceTitle "playchess.com"]
[Source "ChessBase"]
[SourceQuality "1"]
[TimeControl "40/5400+30:1800+30"]

{[%evp 18,72,19,24,23,21,18,16,23,26,23,11,39,16,35,33,38,38,33,41,61,52,56,48,71,53,71,62,70,56,75,74,66,78,55,54,47,51,105,105,110,114,111,2,3,4,253,0,0,0,0,0,0,0,0,0,0]} 1. e4 {[%emt 0:00:02]} e5 {[%emt 0:00:16]} 2. Nf3 {[%emt 0:00:05]} Nc6 {[%emt 0:00:10]} 3. Bb5 {[%emt 0:00:04]} Nf6 {[%emt 0:00:09]} 4. O-O {[%emt 0:00:05][%cal Bh1f1,Bf1e1,Be1e5][%mdl 32]} Nxe4 {[%emt 0:00:17]} 5. Re1 {[%emt 0:00:03]} Nd6 {[%emt 0:00:09]} 6. Nxe5 {[%emt 0:00:05]} Be7 {[%emt 0:00:09]} 7. Bf1 {[%emt 0:00:08]} Nxe5 {[%emt 0:00:08]} 8. Rxe5 {[%emt 0:00:04]} O-O {[%emt 0:00:12]} 9. d4 {[%emt 0:00:02]} Bf6 {[%emt 0:00:10]} 10. Re1 {[%emt 0:00:05]} Nf5 {[%emt 0:00:05]} 11. d5 {[%emt 0:00:10]} d6 {[%emt 0:00:07]} 12. Nd2 {[%emt 0:00:07]} h6 {[%emt 0:00:05]} 13. c3 {[%emt 0:00:17]} Bd7 {[%emt 0:06:31]} 14. a4 {[%emt 0:00:13]} a5 {[%emt 0:09:16]} 15. Qb3 {[%emt 0:00:12]} b6 {[%emt 0:03:45]} 16. Ne4 {[%emt 0:00:57]} Be5 {[%emt 0:12:23]} 17. f4 {[%emt 0:00:21]} Bf6 {[%emt 0:00:06][%cal Be5f6,Bf6h4,Bh4e7][%mdl 32]} 18. Bb5 {[%emt 0:00:03]} Bh4 {[%emt 0:14:05]} 19. g3 {[%emt 0:10:24]} Be7 {[%emt 0:00:45]} 20. Bd2 {[%emt 0:03:05]} h5 {[%emt 0:02:31]} 21. Qd1 {[%emt 0:06:45]} g6 {[%emt 0:14:02]} 22. c4 {[%emt 0:04:43]} Bxb5 {[%emt 0:02:01]} 23. axb5 {[%emt 0:23:49]} Bf6 {[%emt 0:06:45]} 24. Nxf6+ {[%emt 0:00:05]} Qxf6 {[%emt 0:00:04]} 25. Bc3 {[%emt 0:00:06] Inhibits Qd4+.} Qd8 {[%emt 0:00:03]} 26. Qd3 $36 {[%emt 0:07:58][%mdl 2048] Black is under pressure.} Qd7 {[%emt 0:02:39]} 27. h3 {[%emt 0:03:49]} Rfe8 {[%emt 0:14:16]} (27... Ng7 $14) 28. Kf2 $1 $16 {[%emt 0:01:21] And now g4 would win.} (28. g4 hxg4 29. hxg4 Nh6 $18) 28... Ng7 {[%emt 0:08:46] Black is weak on the dark squares} 29. Qd4 {[%emt 0:01:20][%csl Gc3][%cal Rd4g7]} f5 {[%emt 0:00:01] [#]} 30. g4 {[%emt 0:21:41] White has more active pieces.} fxg4 {[%emt 0:00:19]} (30... Rxe1 {keeps more tension.} 31. Rxe1 fxg4 32. hxg4 hxg4 33. Qf6 Qf7) 31. hxg4 {[%emt 0:00:04]} Rf8 $2 {[%emt 0:01:23] [#]} (31... Rxe1 $11 32. Rxe1 hxg4) 32. Qxg7+ $2 {[%emt 0:09:24]} (32. Re6 $1 $18 {[%cal Re6g6]} g5 (32... Nxe6 $2 {is the wrong capture.} 33. Qh8+ Kf7 34. dxe6+ Qxe6 35. Qd4 $18) 33. gxh5 (33. Rf6 Rxf6 34. Qxf6 Rf8 $11) 33... Rxf4+ (33... Nxe6 $2 {too greedy.} 34. dxe6 Qh7 35. Rg1 $18) 34. Qxf4 gxf4 35. Rg1) 32... Qxg7 $11 {[%emt 0:00:01] The position is equal.} 33. Bxg7 {[%emt 0:00:05]} Kxg7 {[%emt 0:00:14]} 34. Re7+ {[%emt 0:01:13]} Rf7 {[%emt 0:00:27]} 35. Rxf7+ {[%emt 0:01:40]} Kxf7 {[%emt 0:00:01]} 36. g5 {[%emt 0:01:33]} Re8 {[%emt 0:01:15] Weighted Error Value: White=0.21 (precise) /Black=0.26 (precise) .  Loses game:     	---       	Black=1      Missed win:     	White=1     	---        Mistake:       	White=1     	Black=1      Inaccurate:     	---       	Black=1      OK:         	White=10    	Black=8      Best:        	---       	Black=2      Strong:       	White=1     	---} 1/2-1/2

[Event "French Top 16-A 2024"]
[Site "Chartres"]
[Date "2024.06.03"]
[Round "5.2"]
[White "Harikrishna, Pentala"]
[Black "Laurent-Paoli, Pierre"]
[Result "1/2-1/2"]
[ECO "B85"]
[WhiteElo "2700"]
[BlackElo "2576"]
[Annotator "RC"]
[PlyCount "135"]
[EventDate "2024.06.01"]
[EventType "team-tourn"]
[EventCountry "FRA"]
[SourceTitle "playchess.com"]
[Source "ChessBase"]
[SourceQuality "1"]
[TimeControl "40/5400+30:1800+30"]

1. e4 {[%emt 0:01:14]} c5 {[%emt 0:01:08]} 2. Nf3 {[%emt 0:00:16]} e6 {[%emt 0:00:09]} 3. Nc3 {[%emt 0:01:07]} Nc6 {[%emt 0:00:27]} 4. Be2 {[%emt 0:00:08]} Nf6 {[%emt 0:00:25]} 5. O-O {[%emt 0:00:09]} d6 {[%emt 0:00:26]} 6. d4 {[%emt 0:01:05]} cxd4 {[%emt 0:00:05]} 7. Nxd4 {[%emt 0:00:06]} Be7 {[%emt 0:00:06]} 8. Be3 {[%emt 0:01:36]} O-O {[%emt 0:00:18]} 9. Kh1 {[%emt 0:01:55]} Bd7 {[%emt 0:02:17]} 10. Nb3 {[%emt 0:02:18]} a6 {[%emt 0:04:48]} 11. f4 {[%emt 0:03:59]} b5 {[%emt 0:04:23]} 12. a3 {[%emt 0:02:23]} Rb8 {[%emt 0:02:46]} 13. g4 {[%emt 0:04:41]} h6 {[%emt 0:08:38]} 14. Bf3 {[%emt 0:06:30]} a5 {[%emt 0:03:41]} 15. Nd5 {[%emt 0:04:01]} a4 {[%emt 0:17:32]} 16. Nxe7+ {[%emt 0:03:32]} Qxe7 {[%emt 0:02:29]} 17. Nd2 {[%emt 0:04:58]} Rbc8 {[%emt 0:16:38]} 18. Bg2 {[%emt 0:12:12]} Nh7 {[%emt 0:03:56]} 19. b4 {[%emt 0:03:34]} e5 {[%emt 0:02:16]} 20. f5 {[%emt 0:07:22]} Nd4 {[%emt 0:00:08]} 21. Bxd4 {[%emt 0:04:03]} exd4 {[%emt 0:00:04]} 22. Nf3 {[%emt 0:01:22]} Bc6 {[%emt 0:02:35]} 23. Nxd4 {[%emt 0:02:39]} Bxe4 {[%emt 0:01:31]} 24. Qe2 {[%emt 0:00:08]} d5 {[%emt 0:01:43]} 25. Rad1 {[%emt 0:02:03]} Nf6 {[%emt 0:01:30]} 26. Rd2 {[%emt 0:04:19]} Rfe8 {[%emt 0:02:16]} 27. Nxb5 {[%emt 0:02:44]} Qd7 {[%emt 0:01:54]} 28. Nd4 {[%emt 0:02:05]} Rc3 {[%emt 0:01:30]} 29. Qb5 {[%emt 0:03:12]} Qc7 {[%emt 0:01:46]} 30. Qxa4 {[%emt 0:07:44]} Bxg2+ {[%emt 0:02:17]} 31. Rxg2 {[%emt 0:03:12]} Qc4 {[%emt 0:02:01]} 32. Rd1 {[%emt 0:00:20]} Re4 {[%emt 0:02:13]} 33. Qa8+ {[%emt 0:01:09]} Re8 {[%emt 0:05:31]} 34. Qa7 {[%emt 0:01:53]} Rce3 {[%emt 0:01:37]} 35. Qc5 {[%emt 0:01:00]} Qa2 {[%emt 0:00:43]} 36. g5 {[%emt 0:03:37]} Re1+ {[%emt 0:01:49]} 37. Rg1 {[%emt 0:01:11]} Rxd1 {[%emt 0:00:22]} 38. Rxd1 {[%emt 0:00:04]} hxg5 {[%emt 0:00:17]} 39. b5 {[%emt 0:02:22]} Ne4 {[%emt 0:00:19]} 40. Qc6 {[%emt 0:00:14]} Kf8 {[%emt 0:04:50]} 41. Kg2 {[%emt 0:13:21]} Qxa3 {[%emt 0:04:16]} 42. Nb3 {[%emt 0:04:13]} Qe7 {[%emt 0:09:50]} 43. Ra1 {[%emt 0:07:24]} Nd6 {[%emt 0:08:36]} 44. Ra8 {[%emt 0:00:50]} Qe4+ {[%emt 0:00:38]} 45. Kg1 {[%emt 0:00:13]} Qe3+ {[%emt 0:03:00]} 46. Kg2 {[%emt 0:00:56]} Qe2+ {[%emt 0:00:34]} 47. Kg1 {[%emt 0:00:06]} Nxf5 {[%emt 0:02:36]} 48. Rxe8+ {[%emt 0:00:41]} Qxe8 {[%emt 0:00:03]} 49. Qc5+ {[%emt 0:00:17]} Kg8 {[%emt 0:00:32]} 50. Nd2 {[%emt 0:02:17]} Qe6 {[%emt 0:02:48]} 51. b6 {[%emt 0:01:06]} Nd6 {[%emt 0:00:10]} 52. Kf1 {[%emt 0:01:29]} Nc8 {[%emt 0:01:54]} 53. b7 {[%emt 0:02:39]} Qa6+ {[%emt 0:00:02]} 54. c4 {[%emt 0:00:05]} Qxb7 {[%emt 0:00:04]} 55. cxd5 {[%emt 0:00:04]} Qd7 {[%emt 0:00:28]} 56. Nc4 {[%emt 0:01:23]} Ne7 {[%emt 0:00:56]} 57. d6 {[%emt 0:00:08]} Qh3+ {[%emt 0:00:45]} 58. Ke1 {[%emt 0:01:39]} Qh4+ {[%emt 0:01:07]} 59. Kd1 {[%emt 0:00:38]} Qg4+ {[%emt 0:00:16]} 60. Kc1 {[%emt 0:00:26]} Ng6 {[%emt 0:00:43]} 61. Qd5 {[%emt 0:00:52]} Qg1+ {[%emt 0:00:37]} 62. Kc2 {[%emt 0:00:55]} Qxh2+ {[%emt 0:00:05]} 63. Kb3 {[%emt 0:00:32]} Qh3+ {[%emt 0:01:10]} 64. Kb4 {[%emt 0:00:10]} Qd7 {[%emt 0:00:18]} 65. Qxg5 {[%emt 0:00:37]} Nf8 {[%emt 0:00:57]} 66. Qe7 {[%emt 0:00:27]} f6 {[%emt 0:00:33]} 67. Nb6 {[%emt 0:00:53]} Qxe7 {[%emt 0:01:00]} 68. dxe7 {[%emt 0:00:07]} 1/2-1/2

[Event "French Top 16-A 2024"]
[Site "Chartres"]
[Date "2024.06.03"]
[Round "5.2"]
[White "Postny, Evgeny"]
[Black "Gharamian, Tigran"]
[Result "1/2-1/2"]
[ECO "E11"]
[WhiteElo "2602"]
[BlackElo "2588"]
[Annotator "TA"]
[PlyCount "49"]
[EventDate "2024.06.01"]
[EventType "team-tourn"]
[EventCountry "FRA"]
[SourceTitle "playchess.com"]
[Source "ChessBase"]
[SourceQuality "1"]
[TimeControl "40/5400+30:1800+30"]

{[%evp 14,49,23,25,31,29,18,27,22,14,18,12,20,0,8,-7,-4,-6,0,8,14,8,13,0,0,0,0,0,0,0,0,0,0,0,0,0,0,0]} 1. d4 {[%emt 0:00:04]} Nf6 {[%emt 0:00:06]} 2. c4 {[%emt 0:00:19]} e6 {[%emt 0:00:06]} 3. Nf3 {[%emt 0:00:10]} Bb4+ {[%emt 0:00:08]} 4. Bd2 {[%emt 0:00:23]} Qe7 {[%emt 0:00:12]} 5. Nc3 {[%emt 0:00:51]} O-O {[%emt 0:03:38]} 6. e3 {[%emt 0:00:42]} b6 {[%emt 0:01:13]} 7. Bd3 {[%emt 0:00:51]} Bb7 {[%emt 0:00:06]} 8. O-O {[%emt 0:00:31]} d6 {[%emt 0:01:44]} 9. a3 {[%emt 0:05:42]} Bxc3 {[%emt 0:00:14]} 10. Bxc3 {[%emt 0:00:05]} Ne4 {[%emt 0:10:38] White has an edge.} 11. Bxe4 {[%emt 0:08:41] The position is equal.} Bxe4 {[%emt 0:00:22]} 12. Nd2 {[%emt 0:00:07]} Bg6 {[%emt 0:07:39]} 13. e4 {[%emt 0:02:43]} e5 {[%emt 0:09:52]} 14. f4 {[%emt 0:08:13]} exf4 {[%emt 0:13:55]} 15. Rxf4 {[%emt 0:15:09]} f5 {[%emt 0:00:14]} 16. exf5 {[%emt 0:08:51]} Qe3+ {[%emt 0:00:40]} 17. Rf2 {[%emt 0:00:05] [#] Black must now prevent Nf1.} Rxf5 {[%emt 0:00:34]} 18. Qe1 {[%emt 0:01:11]} Qxf2+ {[%emt 0:00:56]} 19. Qxf2 {[%emt 0:02:20]} Rxf2 {[%emt 0:00:05]} 20. Kxf2 {[%emt 0:00:04]} Nd7 {[%emt 0:00:19]} 21. Re1 {[%emt 0:00:45]} Rf8+ {[%emt 0:02:17]} 22. Kg1 {[%emt 0:02:07]} a5 {[%emt 0:17:56]} 23. Re7 {[%emt 0:05:07]} Rf7 {[%emt 0:00:08]} 24. Re8+ {[%emt 0:00:07]} Rf8 {[%emt 0:00:12]} 25. Re7 {[%emt 0:01:50] An uneventful encounter.   Weighted Error Value: White=0.05 (flawless) /Black=0.01 (flawless) .  OK:         	White=4     	Black=12     Best:        	White=1     	---} 1/2-1/2